Cogmind - Beta 14 @@@ ROGUE MODE // 2025.01.14 @ 17:59:30 Player: PeanutArbuckle Result: Destroyed by G-47 Trooper with Particle Gun Performance ------------- Evolutions (2) 1000 Regions Visited (4) 800 Robots Destroyed (32) 160 Value Destroyed (953) 953 Prototype IDs (2) 40 Alien Tech Used (0) 0 Bonus (0) 0 TOTAL SCORE: 2953 Bonus ------- None Cogmind --------- Core Integrity 0/550 Matter 329/450 Energy 12/100 System Corruption 0% Temperature Danger (410) Movement Flying (34) Location -8/Materials Parts ------- > --- POWER (2) -------- (None) > --- PROPULSION (3) --- Flight Unit Improved VTOL Module > --- UTILITY (4) ------ Compact Matter Pod > --- WEAPON (2) ------- Powered Hammer > --- INVENTORY (5) ---- Powered Hammer Peak State ------------ > --- POWER ------------ Light Nuclear Core > --- PROPULSION ------- Flight Unit Flight Unit Improved VTOL Module > --- UTILITY ---------- Compact Matter Pod Core Shielding Power Shielding > --- WEAPON ----------- Heavy Ion Cannon Powered Hammer > --- INVENTORY -------- (None) [Rating: 22] Favorites ----------- Power Light Ion Engine Engine Light Ion Engine Power Core Light Nuclear Core Propulsion Light Treads Treads Light Treads Flight Unit Flight Unit Utility Power Shielding Storage Small Storage Unit Protection Power Shielding Weapon Light Assault Rifle Energy Gun EM Pulse Gun Energy Cannon Heavy Ion Cannon Ballistic Gun Light Assault Rifle Launcher Mini Grenade Launcher Impact Weapon Powered Hammer Slashing Weapon Katana Build | -11 -10 -9 -9 -8 ------- Run | Yrd Mat Mat Min Mat Slots Evolved 4 | . . 2 . 2 Power 1 | . . . . 1 Propulsion 1 | . . 1 . . Utility 2 | . . 1 . 1 Weapon . | . . . . . Parts Attached 43 | 7 1 10 . 25 Power 5 | 2 . . . 3 Engine 3 | 2 . . . 1 Core 2 | . . . . 2 Reactor . | . . . . . Propulsion 15 | 2 . 3 . 10 Treads 11 | 2 . 3 . 6 Leg . | . . . . . Wheel . | . . . . . Hover . | . . . . . Flight 4 | . . . . 4 Utility 10 | 1 1 2 . 6 Device . | . . . . . Storage 5 | 1 . 1 . 3 Processor . | . . . . . Hackware . | . . . . . Protection 5 | . 1 1 . 3 Artifact . | . . . . . Weapon 13 | 2 . 5 . 6 Energy Gun 3 | 1 . 1 . 1 Energy Cannon 2 | . . . . 2 Ballistic Gun 4 | 1 . 3 . . Ballistic Cannon . | . . . . . Launcher 1 | . . 1 . . Special Weapon . | . . . . . Impact Weapon 2 | . . . . 2 Slashing Weapon 1 | . . . . 1 Piercing Weapon . | . . . . . Special Melee Weapon . | . . . . . Unidentified Prototypes 2 | . . 1 . 1 Parts Lost 14 | . . 1 . 13 Power 3 | . . . . 3 Propulsion 3 | . . . . 3 Utility 4 | . . . . 4 Weapon 4 | . . 1 . 3 Highest Loss Streak 5 | . . 1 . 5 To Critical Strikes . | . . . . . Average Slot Usage (%) 84 | . 91 90 100 66 Engine 9 | . 14 11 11 3 Core 1 | . . . . 4 Treads 24 | . 28 27 33 15 Flight 2 | . . . . 8 Storage 11 | . 14 11 11 9 Protection 15 | . 5 19 22 16 Energy Gun 9 | . 14 9 11 5 Ballistic Gun 6 | . 14 5 11 2 Launcher 3 | . . 7 . . Peak Build Rating 22 | 6 7 19 17 22 Average Rating 12 | 3 6 12 17 16 On Entrance 9 | . 6 7 17 17 Naked Turns . | . . . . . Heaviest Build 33 | 11 12 33 33 33 Greatest Support 66 | 40 40 64 64 66 Greatest Overweight (x) 4 | . . . . 4 Average Overweight (x) . | . . . . . Largest Inventory Capacity 15 | 8 8 15 15 15 Average Capacity 9 | 6 8 11 15 7 Most Carried 10 | 2 2 10 10 9 Average Carried 3 | 1 1 5 10 2 Final Capacity 15 | 8 8 15 15 5 Final Carried 10 | 1 1 10 10 1 Class Distribution -------------------- 93% | Mutant 5% | Scavenger-Sprinter Dominant Class ---------------- Mutant | -10/Materials Mutant | -9/Materials Mutant | -9/Mines Mutant | -8/Materials Resources | -11 -10 -9 -9 -8 ----------- Run | Yrd Mat Mat Min Mat Matter Collected 850 | 233 59 234 22 302 Remotely . | . . . . . Salvage Created 1058 | . 150 358 57 493 Parts 72 | . 6 37 8 21 Haulers Intercepted 1 | . . 1 . . Recyclers Shooed . | . . . . . Parts Field Recycled . | . . . . . Retrieved Matter . | . . . . . Parts Self-Destructed . | . . . . . Prevented . | . . . . . Kills | -11 -10 -9 -9 -8 ------- Run | Yrd Mat Mat Min Mat Combat Hostiles Destroyed 26 | . 3 10 4 9 Melee 4 | . . . . 4 Guns 13 | . 1 5 4 3 Cannons 2 | . . . . 2 AOE 7 | . 2 5 . . Classes Destroyed 9 | . 2 5 . 2 Worker 1 | . . 1 . . Hauler 1 | . . 1 . . Operator 1 | . . 1 . . Watcher 3 | . 1 2 . . Swarmer 7 | . . 3 4 . Grunt 13 | . 3 4 . 6 Brawler 1 | . . . . 1 Duelist 1 | . . . . 1 Sentry 4 | . . 3 . 1 Best Kill Streak 5 | . 2 5 4 3 Combat Bots Only 4 | . 2 3 4 3 Max Kills in Single Turn 2 | . 2 1 2 1 Gunslinging 1 | . . . 1 . Exploded 2 | . 2 1 . . Melee 1 | . . . . 1 Uniques/NPCs Destroyed . | . . . . . Combat | -11 -10 -9 -9 -8 -------- Run | Yrd Mat Mat Min Mat Hostile Shots Fired 275 | . 10 55 20 190 Missed 70 | . 5 11 5 49 Damage Taken 3015 | . 103 503 138 2271 Core 652 | . 18 56 23 555 Absorbed by Shields . | . . . . . Redirected to Shielding 93 | . . 3 9 81 Regen/Repaired (Parts) 14 | . . . . 14 Core Remaining (%) 90 | 100 92 . 80 . Volleys Fired 84 | . 12 28 6 38 Largest 2 | . 2 2 2 2 Hottest 130 | . 60 76 76 130 Shots Fired 144 | . 24 54 12 54 Gun 117 | . 24 40 12 41 Cannon 13 | . . . . 13 Launcher 14 | . . 14 . . Special . | . . . . . Kinetic 43 | . 12 15 6 10 Thermal 60 | . . 10 6 44 Explosive 14 | . . 14 . . Electromagnetic 27 | . 12 15 . . Robot Hit Streak 7 | . 3 7 2 5 Robot Miss Streak 4 | . 3 4 2 2 Penetration Max . | . . . . . Secondary Targets 2 | . . . 1 1 Max Gunslinging Chain 1 | . . . 1 1 Shots Hit Robots 89 | . 11 25 6 47 Core Hits 55 | . 8 27 4 16 Critical Kills 1 | . . . . 1 Critical Parts Destroyed . | . . . . . Critical Strikes 2 | . . . . 2 Burn 1 | . . . . 1 Destroy 1 | . . . . 1 Melee Attacks 20 | . . . . 20 Impact 1 | . . . . 1 Slashing 19 | . . . . 19 Piercing . | . . . . . Sneak Attacks . | . . . . . Combat Hostiles . | . . . . . Follow-up Attacks . | . . . . . Damage Inflicted 2206 | . 217 794 78 1117 Guns 783 | . 118 246 78 341 Cannons 301 | . . . . 301 Explosions 647 | . 99 548 . . Melee 472 | . . . . 472 Ramming 3 | . . . . 3 Kinetic 165 | . 57 39 19 50 Thermal 888 | . 99 138 59 592 Explosive 514 | . . 514 . . Electromagnetic 164 | . 61 103 . . Impact 62 | . . . . 62 Slashing 410 | . . . . 410 Piercing . | . . . . . Highest Corruption 1 | . 1 . . . Average Corruption 1 | . 1 . . . Corruption Purged . | . . . . . Corruption Blocked . | . . . . . Effects 1 | . 1 . . . Data Loss (major) 1 | . 1 . . . Overload Shots . | . . . . . Overflow Damage 26 | . . . . 26 Projectiles . | . . . . . Explosions . | . . . . . Melee 26 | . . . . 26 Knockbacks 1 | . . . . 1 Impact 1 | . . . . 1 Kinetic . | . . . . . Secondary . | . . . . . Self-Inflicted Damage 28 | . . 28 . . Shots 1 | . . 1 . . Rammed 1 | . . . . 1 Targets Rammed 1 | . . . . 1 Kicked . | . . . . . Crushed . | . . . . . Highest Temperature 484 | . 73 102 168 484 Average Temperature 91 | . 26 33 85 153 Received Heat Transfer 1341 | . 39 150 27 1125 Effects 5 | . . . . 5 Shutdowns 1 | . . . . 1 Interference 2 | . . . . 2 Matter Decay 1 | . . . . 1 Damage (minor) 1 | . . . . 1 Siege Activations . | . . . . . Robots Corrupted . | . . . . . Combat Hostiles . | . . . . . Parts Fried . | . . . . . Impact Corruptions . | . . . . . Robots Melted . | . . . . . Combat Hostiles . | . . . . . Parts Melted 4 | . . . . 4 Heat Transferred 1728 | . 50 309 148 1221 Parts Sabotaged . | . . . . . Parts Stolen . | . . . . . Parts Stripped . | . . . . . Power Chain Reactions 2 | . 1 1 . . Alert | -11 -10 -9 -9 -8 ------- Run | Yrd Mat Mat Min Mat Peak Influence 316 | . 135 316 213 242 Initial 123 | . . 56 123 82 Average 139 | . 51 184 160 156 Maximum Alert Level 1 | . . 1 1 1 Low Security (%) 72 | 100 100 61 65 64 Level 1 27 | . . 38 34 35 Level 2 . | . . . . . Level 3 . | . . . . . Level 4 . | . . . . . Level 5 . | . . . . . High Security . | . . . . . Max Security . | . . . . . Squads Dispatched 5 | . 1 3 . 1 Investigation . | . . . . . Extermination . | . . . . . Reinforcement 5 | . 1 3 . 1 Assault . | . . . . . Garrison . | . . . . . Intercept . | . . . . . Searches Triggered . | . . . . . Construction Impeded . | . . . . . Haulers Reinforced . | . . . . . Active Scanning Responses . | . . . . . Cargo Convoy Interrupts . | . . . . . Stealth | -11 -10 -9 -9 -8 --------- Run | Yrd Mat Mat Min Mat Distress Signals 5 | . . 2 . 3 Communications Jammed . | . . . . . Distress Signals . | . . . . . Times Spotted 51 | . 7 14 6 24 Peak Tracking Total 11 | . 2 4 4 11 Tactical Retreats 3 | . . . . 3 Traps | -11 -10 -9 -9 -8 ------- Run | Yrd Mat Mat Min Mat Traps Triggered 1 | . 1 . . . Indirectly . | . . . . . Trap Hack Attempts . | . . . . . Triggered . | . . . . . Disarmed . | . . . . . Reprogrammed . | . . . . . Reused . | . . . . . Traps Extracted . | . . . . . Installed . | . . . . . Triggered . | . . . . . Machines | -11 -10 -9 -9 -8 ---------- Run | Yrd Mat Mat Min Mat Machines Disabled 2 | . . 2 . . Max in Single Turn 1 | . . 1 . . Machines Repaired . | . . . . . Machines Dismantled . | . . . . . Machines Sabotaged . | . . . . . Overloaded Fab Kills . | . . . . . Hacking | -11 -10 -9 -9 -8 --------- Run | Yrd Mat Mat Min Mat Machines Accessed 2 | . . 1 . 1 Terminals . | . . . . . Fabricators . | . . . . . Repair Stations 1 | . . . . 1 Recycling Units . | . . . . . Scanalyzers 1 | . . 1 . . Garrison Access . | . . . . . Total Hacks 6 | . . 4 . 2 Successful 5 | . . 3 . 2 Failed 1 | . . 1 . . Catastrophic . | . . . . . Database Lockouts . | . . . . . Manual . | . . . . . Terminals . | . . . . . Fabricators . | . . . . . Repair Stations 2 | . . . . 2 Recycling Units . | . . . . . Scanalyzers 4 | . . 4 . . Garrison Access . | . . . . . Terminal Hacks . | . . . . . Fabricator Hacks . | . . . . . Repair Station Hacks 2 | . . . . 2 Scan Component 1 | . . . . 1 Repair 1 | . . . . 1 Recycling Unit Hacks . | . . . . . Scanalyzer 3 | . . 3 . . Insert Component 2 | . . 2 . . Analyze 1 | . . 1 . . Garrison Access Hacks . | . . . . . Unauthorized Hacks . | . . . . . Terminals . | . . . . . Fabricators . | . . . . . Repair Stations . | . . . . . Recycling Units . | . . . . . Scanalyzers . | . . . . . Garrison Access . | . . . . . Data Cores Recovered . | . . . . . Used . | . . . . . Hacking Detections 1 | . . 1 . . Full Trace Events 1 | . . 1 . . Feedback Events . | . . . . . Feedback Blocked . | . . . . . Robot Schematics Acquired . | . . . . . Robots Built . | . . . . . Authchips . | . . . . . Time . | . . . . . Total Robot Build Rating . | . . . . . Part Schematics Acquired 1 | . . 1 . . Parts Built . | . . . . . Authchips . | . . . . . Time . | . . . . . Total Part Build Rating . | . . . . . Parts Repaired 1 | . . . . 1 Time 38 | . . . . 38 Parts Recycled . | . . . . . Recycled Matter . | . . . . . Retrieved Matter . | . . . . . Retrieved Components . | . . . . . Parts Scanalyzed 1 | . . 1 . . Part Schematics Acquired 1 | . . 1 . . Parts Damaged . | . . . . . Bothacking | -11 -10 -9 -9 -8 ------------ Run | Yrd Mat Mat Min Mat Used RIF Installer . | . . . . . Robots Hacked . | . . . . . Non-combat . | . . . . . Combat . | . . . . . Robot Hacks Applied . | . . . . . Relay Couplers Released . | . . . . . Fabnet Peak Effective % . | . . . . . Robots Rewired . | . . . . . Allies Hacked . | . . . . . Hacks Repelled . | . . . . . Allies | -11 -10 -9 -9 -8 -------- Run | Yrd Mat Mat Min Mat Total Allies . | . . . . . Largest Group . | . . . . . Highest-Rated Group . | . . . . . Highest-Rated Ally . | . . . . . Total Orders . | . . . . . Ally Attacks . | . . . . . Total Damage . | . . . . . Kills . | . . . . . Allies Corrupted . | . . . . . Allies Melted . | . . . . . Intel | -11 -10 -9 -9 -8 ------- Run | Yrd Mat Mat Min Mat Robot Analysis Total . | . . . . . Derelict Logs Recovered . | . . . . . Drone Launches . | . . . . . Drone Recoveries . | . . . . . Exploration | -11 -10 -9 -9 -8 ------------- Run | Yrd Mat Mat Min Mat Turns Passed 1699 | 67 361 693 106 472 Spaces Moved 981 | 40 204 374 57 306 Core 38 | 9 . . . 29 Treads 744 | 31 204 374 57 78 Legs . | . . . . . Wheels . | . . . . . Hover . | . . . . . Flight 199 | . . . . 199 Fastest Speed 32 | 50 160 150 150 32 Average Speed 133 | 135 160 155 150 85 Slowest Speed 250 | 160 160 160 150 250 Overloaded Moves . | . . . . . Propulsion Burnouts . | . . . . . Robots Hopped 2 | . . . . 2 Cave-ins Triggered . | . . . . . Exploration Rate (%) 18 | 3 30 27 16 18 Regions Visited 4 Branch Regions 1 Pre-discovered Areas . | . . . . . Known Exits Taken . | . . . . . Unknown Exits Taken 4 | 1 1 1 1 . Scrap Searched 1 | . . . 1 . Spaces Dug . | . . . . . Terrain Destroyed 105 | . 2 101 . 2 Melee . | . . . . . Projectile 2 | . . . . 2 AOE 103 | . 2 101 . . Terrain Rammed . | . . . . . Walls Destroyed . | . . . . . Machines Disabled . | . . . . . Actions | -11 -10 -9 -9 -8 --------- Run | Yrd Mat Mat Min Mat Total 1209 | 53 217 436 67 436 Wait 29 | . . 3 5 21 Move 973 | 39 203 373 56 302 Hop 2 | . . . . 2 Pick Up 38 | 7 1 16 . 14 Fast Attach . | . . . . . Attach 29 | 6 1 4 . 18 Detach 1 | . . . . 1 Swap 14 | 1 . 6 . 7 Drop 18 | . . 6 . 12 Fire 84 | . 12 28 6 38 Melee 20 | . . . . 20 Ram . | . . . . . Kick . | . . . . . Crush 1 | . . . . 1 Escape Stasis . | . . . . . Rewire . | . . . . . Trap . | . . . . . Miscellaneous . | . . . . . Route ------- -11/Scrapyard -10/Materials -9/Materials -9/Mines -8/Materials History --------- Turn | Location | Event 7 | -11/Scrapyard | Discovered new exit (range 16) 68 | -11/Scrapyard | Entered Materials 310 | -10/Materials | Build established: Mutant 396 | -10/Materials | Discovered new exit (range 10) 429 | -10/Materials | Entered another Materials area 429 | -9/Materials | Evolved 2 slots: Propulsion x1, Utility x1 962 | -9/Materials | Discovered new exit (range 16) 1122 | -9/Materials | Entered Mines 1160 | -9/Mines | Discovered new exit (range 15) 1228 | -9/Mines | Entered Materials 1228 | -8/Materials | Evolved 2 slots: Power x1, Utility x1 1367 | -8/Materials | Lost 5 parts (2p1n1u1w) 1612 | -8/Materials | Repaired Lgt. Nuclear Core 1682 | -8/Materials | Core integrity fell below 50% 1699 | -8/Materials | Core integrity fell below 20% 1700 | -8/Materials | Destroyed by G-47 Trooper with Particle Gun Last Messages --------------- Flight Unit destroyed. G-47 Trooper destroyed. U-05 Engineer builds a Wall. Penetrated by Slug. Power Shielding destroyed. Lgt. Nuclear Core destroyed. Penetrated by Slug. Core Shielding destroyed. Penetrated by Slug. Overheating: Matter decay (-83). Hvy. Ion Cannon destroyed. Slug penetrates Wall. Critical hit (Burn: +37). Acquired Powered Hammer. Dropped Hvy. Ion Cannon. Acquired Powered Hammer. Critical hit (Burn: +37). G-47 Trooper knocked back. Penetrated by Slug. Critical hit (Burn: +37). Map ----- +----------------------------------------------------+ | | | | | | | | | | | | | | | | | | | | | | | ???????????????????????????????? | | ???????????????????????????????? | | ???????????????????????????????? | | ???????????????????????????????? | | ???????????????????????????????? | | ???????????????????????????????? | | ???########????????????????????? | | ???#] ]/!!#????????????????????? | | ???#]/ !!#????????????????????? | | ???# #??????###########+### | | ???### ##??????# | | ????#; #???????# !! | | ????## #????/ # | | ?????# # !! ### ########### | | ?????# @!g #?# #?# #? | | ?????#ghg# #?# #?# """ #? | | ?????#% g# #?# #?# """ #? | | ?????#! ########### ### """ #? | | ?????# * = #% #? | | ?????# +!%*/ #? | | ?????# w #=!!! #? | | ??#### gb###############[!!!= #? | | ?##! #?????????????#=!!!! #? | | ?#! #?????#???????# ==% #? | | ?#! #???? ##??????# = #? | | ?#! #??!! #??????# = #? | | ?#! #?!!! #??????# #? | | ?##! # !! #??????##+#####? | | ??#### + #???????# #????? | | ?????# # "T" #???????#!#????? | | ?????# #??""" ????????# #????? | | ?????# #????#?????????# #????? | | ?????# #??????????????# #????? | | ?????# #?#####????????# #????? | | ???[ # ###"T"########## #????? | | ??[[ + ! #????? | | ?????# = #######????? | | ?????# = #??????????? | | ?????# """ ############ | +----------------------------------------------------+ Best States ------------- Heat Dissipation 31 Energy Generation 15 Energy Capacity 275 Matter Stores 427 Matter Capacity 450 Sight Range 16 Terrain Scan Density 10 Armor Coverage 600 Core Shielding 20 Power Shielding 33 Evasion (%) 63 Recoil Reduction 3 Item Schematics ----------------- Hvy. Armor Plating | -9/Materials | Scanalyzed Robot Schematics ------------------ None Fabricated ------------ Nothing Alien Tech Used ----------------- None Achievements -------------- None Challenges ------------ None Game ------ Seed FluxClaymoresBotcube Manual? 0 Play Time 00:20:23 Cumulative 2.4 hours Start 2025.01.14 @ 17:39:04 End 2025.01.14 @ 17:59:30 Sessions 1 Manual Loads 0 Difficulty Rogue Special Mode None Game No. 7 Rogue 7 Adventurer 0 Explorer 0 Win Type - Total 0 Types 0/0/0/0/0/0/0/0/0 Lore% 1 Gallery% 7 Achievement% 7 Wizard Run 0 Options --------- Layout 1 ASCII 0 Keyboard 0 Movement Mouse Keybinds 0 Fullscreen 1 Font 24/Smallcaps Map View 25x20 Zoom Use 99% Tactical HUD 0 Map Filters NONE Filters NONE Steam 1 RUN: c38bd23e-2c80-486e-86a4-16abc6dd4c91